Cogmind - Beta 11 X5 @@@ ROGUE MODE // 2021.06.17 @ 17:30:53 Player: alice_fexa Result: Self-destructed Performance ------------- Evolutions (7) 3500 Regions Visited (22) 4400 Robots Destroyed (315) 1575 Value Destroyed (14225) 14225 Prototype IDs (39) 780 Alien Tech Used (1) 200 Bonus (4680) 4680 TOTAL SCORE: 29360 Bonus ------- High Alert Combat Kills 2853 Follower Combat Kills 155 Entered Garrisons 400 Used RIF Installer 1000 Met Data Miner 300 Friendly Fire -28 Cogmind --------- Core Integrity 1083/1300 Matter 285/300 Energy 181/240 System Corruption 11% Temperature Cool (0) Movement Rolling (125) Ox3 Location -3/Research Parts ------- > --- POWER (2) -------- Light Antimatter Reactor Light Antimatter Reactor > --- PROPULSION (6) --- Wheel Wheel Wheel > --- UTILITY (9) ------ Advanced Heat Sink Advanced Heat Sink Huge Storage Unit Advanced Signal Interpreter Improved Weapon Cycler Advanced System Shield > --- WEAPON (4) ------- (None) > --- INVENTORY (25) --- Particle Reactor Advanced Heat Sink Advanced Energy Well (500) Improved Matter Compressor (29) Advanced Signal Interpreter Improved Weapon Cycler Advanced Transmission Jammer Improved Utility Shielding Improved Utility Shielding Hacking Suite Relay Coupler [Behemoth] (10) System Guard Transdimensional Reconstructor Phase Gun Heavy Neutron Cannon Precision Rocket Launcher Improved Remote Datajack Power Sword Peak State ------------ > --- POWER ------------ Fusion Reactor Antimatter Reactor > --- PROPULSION ------- Improved Heavy Treads Armored Heavy Treads Advanced Heavy Treads > --- UTILITY ---------- Huge Storage Unit Advanced Signal Interpreter Improved Targeting Computer Quantum Capacitor Improved Weapon Cycler Advanced Transmission Jammer Improved Utility Shielding Advanced System Shield > --- WEAPON ----------- Heavy Neutron Cannon Heavy Neutron Cannon Heavy Neutron Cannon Coil Gun > --- INVENTORY -------- Micro Fission Core Antimatter Reactor Antimatter Reactor Light Antimatter Reactor Light Antimatter Reactor Advanced Heat Sink Advanced Heat Sink Advanced Heat Sink Advanced Heat Sink Advanced Heat Sink Advanced Heat Sink Advanced Energy Well Improved Matter Compressor Advanced Signal Interpreter Advanced Transmission Jammer Hacking Suite Relay Coupler [Behemoth] System Guard Transdimensional Reconstructor Phase Gun Heavy Neutron Cannon Precision Rocket Launcher Improved Remote Datajack Power Sword [Rating: 145] Favorites ----------- Power Fission Core Engine Improved Deuterium Engine Power Core Fission Core Reactor Antimatter Reactor Propulsion Armored Treads Treads Armored Treads Leg Flexi-carbon Leg Wheel Compact Wheel Utility Improved Heat Sink Device Improved Heat Sink Storage High-capacity Storage Unit Processor Improved Targeting Computer Hackware Hacking Suite Protection Improved Medium Armor Plating Weapon Heavy Particle Gun Energy Gun Heavy Particle Gun Energy Cannon Heavy Neutron Cannon Ballistic Gun Hypervelocity Coil Gun Ballistic Cannon Hypervelocity Mass Driver Launcher Rocket Launcher Special Weapon Improved Remote Datajack Slashing Weapon Chainsword Piercing Weapon Spear Special Melee Weapon Improved Datajack Build | -11 -10 -10 -10 -9 -8 -8 -7 -7 -7 -7 -6 -6 -6 -6 -6 -5 -5 -5 -5 -4 -4 -3 ------- Run | Scr Mat Min Exi Min Mat Gar Fac Low Low Dat Pro Fac Was Fac Gar Fac Upp Upp Zhi Pro Fac Res Slots Evolved 14 | . . . . . 4 . 2 . . . . 2 . . . 2 . . . . 2 2 Power 1 | . . . . . . . . . . . . . . . . 1 . . . . . . Propulsion 4 | . . . . . 1 . 1 . . . . . . . . 1 . . . . . 1 Utility 7 | . . . . . 3 . 1 . . . . 1 . . . . . . . . 2 . Weapon 2 | . . . . . . . . . . . . 1 . . . . . . . . . 1 Parts Attached 412 | 7 12 2 1 2 52 9 33 9 2 5 15 39 4 5 14 61 6 2 10 10 74 38 Power 40 | 2 3 . . . 7 . 2 . . . 1 3 . . 3 4 . . 2 1 7 5 Engine 16 | 2 3 . . . 3 . 2 . . . 1 2 . . 3 . . . . . . . Core 11 | . . . . . 4 . . . . . . 1 . . . 4 . . 1 1 . . Reactor 13 | . . . . . . . . . . . . . . . . . . . 1 . 7 5 Propulsion 74 | 2 2 . . 2 11 4 4 . . . 3 13 . 1 2 13 1 . . 1 8 7 Treads 37 | 1 1 . . 2 3 2 3 . . . 3 6 . . 1 4 1 . . 1 7 2 Leg 2 | . . . . . . . . . . . . . . . . . . . . . . 2 Wheel 35 | 1 1 . . . 8 2 1 . . . . 7 . 1 1 9 . . . . 1 3 Hover . | . . . . . . . . . . . . . . . . . . . . . . . Flight . | . . . . . . . . . . . . . . . . . . . . . . . Utility 155 | 1 3 1 1 . 17 1 16 5 . . 4 9 1 3 5 21 2 2 5 1 41 16 Device 86 | . 2 1 . . 6 1 12 3 . . 3 3 . 1 4 13 2 2 2 1 20 10 Storage 8 | 1 1 . 1 . . . . . . . . 1 . . . . . . 2 . 1 1 Processor 5 | . . . . . . . . . . . . . . . . 1 . . . . 3 1 Hackware 9 | . . . . . . . 2 . . . . 1 1 . . 3 . . . . 1 1 Protection 47 | . . . . . 11 . 2 2 . . 1 4 . 2 1 4 . . 1 . 16 3 Artifact . | . . . . . . . . . . . . . . . . . . . . . . . Weapon 143 | 2 4 1 . . 17 4 11 4 2 5 7 14 3 1 4 23 3 . 3 7 18 10 Energy Gun 44 | . . . . . 10 2 5 1 1 1 4 3 1 . 1 6 1 . 2 1 5 . Energy Cannon 15 | . . . . . . . 1 . . . . 3 . . . . 1 . . . 5 5 Ballistic Gun 31 | 2 4 . . . 4 . . . . . . 4 . 1 2 6 . . . 4 3 1 Ballistic Cannon 3 | . . . . . . . . . . . . . 1 . . . . . . 1 1 . Launcher 23 | . . 1 . . 2 2 . 1 . 1 3 . . . 1 6 1 . . . 3 2 Special Weapon 6 | . . . . . . . . . . . . . . . . 1 . . 1 1 1 2 Impact Weapon . | . . . . . . . . . . . . . . . . . . . . . . . Slashing Weapon 2 | . . . . . . . . . . 1 . 1 . . . . . . . . . . Piercing Weapon 11 | . . . . . 1 . 5 2 1 2 . . . . . . . . . . . . Special Melee Weapon 8 | . . . . . . . . . . . . 3 1 . . 4 . . . . . . Unidentified Prototypes 11 | . . . . . 3 . . . . . . 1 . 1 . 1 . . 5 . . . Corrupted Parts 6 | . . . . . . . . . . . . . . . . 1 . . . . 5 . System Corruption 27 | . . . . . . . . . . . . . . . . 4 . . . . 23 . Parts Lost 76 | . . . . . 5 . 2 1 . . 9 2 . . 4 11 . . . 3 22 17 Power 5 | . . . . . . . . . . . 1 . . . . . . . . . 1 3 Propulsion 21 | . . . . . 2 . 1 . . . 3 1 . . 1 4 . . . 1 4 4 Utility 32 | . . . . . 2 . 1 1 . . 4 1 . . 1 4 . . . 1 12 5 Weapon 18 | . . . . . 1 . . . . . 1 . . . 2 3 . . . 1 5 5 Highest Loss Streak 12 | . . . . . 2 . 2 1 . . 9 1 . . 2 7 . . . 3 6 12 Average Slot Usage (%) 93 | . 98 100 100 100 98 89 95 99 100 100 93 92 93 93 99 94 88 88 78 87 86 82 Engine 4 | . 14 14 14 14 3 9 7 7 7 7 6 1 . . 5 2 . . . . . . Core 3 | . . . . . 5 . . . . . . 4 6 6 . 8 11 11 10 11 2 . Reactor 1 | . . . . . . . . . . . . . . . . . . . . . 7 8 Treads 16 | . 13 14 14 14 9 10 16 30 30 30 28 13 13 13 13 13 15 17 17 16 14 13 Wheel 7 | . 14 14 14 14 17 16 13 . . . . 12 13 13 13 10 1 . . . . . Device 17 | . 13 14 14 14 17 18 19 22 15 15 15 14 13 13 19 17 16 17 16 16 19 18 Storage 7 | . 14 14 14 14 9 9 7 7 7 7 7 6 6 6 6 5 5 5 5 5 5 4 Processor 1 | . . . . . . . . . . . . . . . . 1 . . . . 3 10 Hackware 4 | . . . . . . . 6 7 7 7 7 7 12 7 6 3 5 5 5 5 6 4 Protection 9 | . . . . . 16 9 7 7 15 15 10 9 6 11 13 10 11 11 11 11 9 2 Energy Gun 6 | . . . . . 12 17 10 10 12 4 10 7 1 . 5 4 4 . 5 9 2 1 Energy Cannon 1 | . . . . . . . . . . . . 3 6 6 6 1 . 5 . . 5 9 Ballistic Gun 5 | . 28 15 14 14 5 . . . . . . 5 6 11 6 8 11 11 . 2 3 3 Launcher 1 | . . 12 14 14 . . . 1 1 1 1 . . . . . . . . . . . Naked Turns . | . . . . . . . . . . . . . . . . . . . . . . . Heaviest Build 171 | 14 32 33 53 53 72 75 73 77 77 76 81 133 129 131 131 137 132 132 126 133 171 163 Greatest Support 220 | 16 16 16 16 16 32 60 80 80 80 80 80 90 26 26 32 70 140 140 140 140 172 220 Greatest Overweight (x) 12 | 1 1 2 3 3 6 7 3 . . . 1 8 4 5 5 12 4 . . . 1 1 Average Overweight (x) 1 | . . 1 2 3 2 1 1 . . . . 2 4 4 3 5 . . . . . . Largest Inventory Capacity 25 | 8 15 15 20 20 20 20 20 20 20 20 20 25 25 25 25 25 25 25 25 25 25 25 Average Capacity 21 | 6 13 15 16 20 20 20 20 20 20 20 20 20 25 25 25 25 25 25 25 25 25 25 Most Carried 25 | 4 15 15 15 19 20 20 20 20 20 20 19 21 25 25 25 25 25 25 25 25 25 25 Average Carried 20 | 2 11 15 15 16 19 19 19 19 19 17 15 19 21 24 24 24 24 24 24 24 22 23 Final Capacity 25 | 8 15 15 20 20 20 20 20 20 20 20 20 25 25 25 25 25 25 25 25 25 25 25 Final Carried 25 | 4 15 15 15 19 20 20 20 19 20 19 18 21 25 25 25 25 24 25 25 22 19 18 Class Distribution -------------------- 39% | Mutant 38% | Scavenger-Mutant 12% | Scavenger-Tank 4% | Scavenger-Gunner 4% | Tank Dominant Class ---------------- Mutant | -10/Materials Mutant | -10/Mines Mutant | -10/Exiles Mutant | -9/Mines Scavenger-Mutant | -8/Materials Scavenger-Mutant | -8/Garrison Scavenger-Mutant | -7/Factory Mutant | -7/Lower Caves Mutant | -7/Lower Caves Mutant | -7/Data Miner Mutant | -6/Proximity Caves Scavenger-Mutant | -6/Factory Scavenger-Mutant | -6/Waste Scavenger-Tank | -6/Factory Scavenger-Tank | -6/Garrison Scavenger-Mutant | -5/Factory Scavenger-Tank | -5/Upper Caves Scavenger-Mutant | -5/Upper Caves Scavenger-Mutant | -5/Zhirov Scavenger-Tank | -4/Proximity Caves Mutant | -4/Factory Scavenger-Mutant | -3/Research Resources | -11 -10 -10 -10 -9 -8 -8 -7 -7 -7 -7 -6 -6 -6 -6 -6 -5 -5 -5 -5 -4 -4 -3 ----------- Run | Scr Mat Min Exi Min Mat Gar Fac Low Low Dat Pro Fac Was Fac Gar Fac Upp Upp Zhi Pro Fac Res Matter Collected 8538 | 229 327 79 . 30 797 130 280 166 40 55 259 701 262 101 539 1601 173 3 441 306 1489 530 Remotely 90 | . . . . . . . . . . . . 90 . . . . . . . . . . Salvage Created 15177 | . 349 123 . . 1479 523 366 295 74 126 658 1364 501 232 902 2069 248 . 360 637 2988 1883 Parts 639 | . 26 11 . . 76 25 20 15 4 1 21 49 6 8 40 95 6 . 5 28 127 76 Haulers Intercepted 4 | . 1 . . . 3 . . . . . . . . . . . . . . . . . Recyclers Shooed 14 | . 1 . . . 4 . . . . . . 3 . . . 2 . . . . 3 1 Parts Field Recycled . | . . . . . . . . . . . . . . . . . . . . . . . Retrieved Matter . | . . . . . . . . . . . . . . . . . . . . . . . Parts Self-Destructed 76 | . . . . . . . . 18 4 . 15 . . . . . 10 . 3 26 . . Prevented 2 | . . . . . . . . . . . . . . . . . 2 . . . . . Kills | -11 -10 -10 -10 -9 -8 -8 -7 -7 -7 -7 -6 -6 -6 -6 -6 -5 -5 -5 -5 -4 -4 -3 ------- Run | Scr Mat Min Exi Min Mat Gar Fac Low Low Dat Pro Fac Was Fac Gar Fac Upp Upp Zhi Pro Fac Res Combat Hostiles Destroyed 256 | . 9 5 . . 24 14 7 9 1 2 14 13 2 4 19 29 4 . . 10 53 37 Guns 128 | . 9 2 . . 22 9 7 1 1 . 6 8 . 2 8 22 1 . . 9 15 6 Cannons 55 | . . . . . . . . . . . . 5 2 1 3 . . . . 1 27 16 AOE 67 | . . 3 . . 2 5 . 8 . . 7 . . 1 7 6 3 . . . 11 14 Classes Destroyed 21 | . 3 1 . . 6 1 2 2 . . . . 1 1 . 1 . . . . 2 1 Worker 16 | . . . . . 1 . . . . . . 1 . . . 3 . . . . . 11 Builder 10 | . . . . . 3 . . . . . . . . . . 2 . . . . 3 2 Tunneler 1 | . . 1 . . . . . . . . . . . . . . . . . . . . Hauler 4 | . 1 . . . 3 . . . . . . . . . . . . . . . . . Recycler 17 | . . . . . 3 . . . . . . 5 . . . 2 . . . . 5 2 Minesweeper 1 | . . . . . . . . 1 . . . . . . . . . . . . . . Mechanic 1 | . . . . . . . . . . . . . . . . . . . . . . 1 Operator 1 | . . . . . . . 1 . . . . . . . . . . . . . . . Watcher 8 | . . . . . 2 . . . . . . . . . . 3 . . . . . 3 Swarmer 55 | . 3 3 . . 4 5 . 5 . . 3 3 . . 7 4 3 . . . 12 3 Saboteur 2 | . . . . . . . . . . . . . . . . . . . . . 1 1 Grunt 107 | . 6 2 . . 9 8 5 . . . 7 6 . 3 9 13 . . . 3 17 19 Brawler 8 | . . . . . . 1 . . . . . . . . 1 1 . . . . 1 4 Duelist 4 | . . . . . . . . . . . . . . 1 . . . . . . 1 2 Protector 4 | . . . . . . . . . . . . . . . . 1 . . . . 2 1 Sentry 18 | . . . . . 7 . . . 1 . 1 3 . . 1 1 1 . . . 2 1 Specialist 3 | . . . . . . . . . . . . . . . . . . . . . 3 . Hunter 21 | . . . . . 4 . . . . . 2 . . . 1 3 . . . 4 3 4 Programmer 26 | . . . . . . . 2 . . . 1 1 . . . 6 . . . 3 11 2 Compactor 2 | . . . . . . . . . . . . . 2 . . . . . . . . . Enhanced Grunt 2 | . . . . . . . . . . 2 . . . . . . . . . . . . Decomposer 1 | . . . . . . . . 1 . . . . . . . . . . . . . . Thug 1 | . . . . . . . . 1 . . . . . . . . . . . . . . Fireman 3 | . . . . . . . . 3 . . . . . . . . . . . . . . Best Kill Streak 16 | . 5 4 . . 6 11 3 4 1 2 4 7 1 4 9 9 3 . . 3 15 16 Combat Bots Only 14 | . 5 3 . . 5 11 3 4 1 2 4 6 1 4 9 5 3 . . 3 14 9 Max Kills in Single Turn 5 | . 1 4 . . 2 4 1 3 1 1 2 1 1 2 2 2 3 . . 1 5 5 Gunslinging . | . . . . . . . . . . . . . . . . . . . . . . . Exploded 4 | . . 3 . . 2 3 . 3 . . 2 . . 1 2 2 3 . . . 4 3 Melee . | . . . . . . . . . . . . . . . . . . . . . . . Uniques/NPCs Destroyed . | . . . . . . . . . . . . . . . . . . . . . . . Combat | -11 -10 -10 -10 -9 -8 -8 -7 -7 -7 -7 -6 -6 -6 -6 -6 -5 -5 -5 -5 -4 -4 -3 -------- Run | Scr Mat Min Exi Min Mat Gar Fac Low Low Dat Pro Fac Was Fac Gar Fac Upp Upp Zhi Pro Fac Res Damage Taken 23654 | . 292 193 . 7 1853 471 327 157 91 48 2177 927 52 108 1742 2667 135 . . 1173 6780 4454 Core 1519 | . 57 46 . . 196 14 14 20 17 . 118 76 . . 120 149 . . . 54 421 217 Absorbed by Shields 18 | . . . . . . 18 . . . . . . . . . . . . . . . . Reduced by Siege Mode 1310 | . . . . . . . . . . . . . . . . 46 5 . . 47 696 516 Core Remaining (%) 73 | 100 . . . 58 . 61 . . . . 75 . . . 76 . . . . 79 63 . Volleys Fired 836 | . 34 9 . . 125 33 20 8 4 1 55 70 23 4 52 114 14 . 15 26 136 93 Largest 4 | . 2 2 . . 2 2 2 2 2 1 2 3 3 3 3 3 3 . 2 3 3 4 Hottest 360 | . 40 46 . . 126 110 110 110 110 36 110 215 138 96 148 190 149 . 156 221 264 360 Shots Fired 1844 | . 68 17 . . 248 63 40 14 8 1 92 139 63 12 109 271 18 . 30 78 333 240 Gun 1289 | . 68 16 . . 247 55 40 10 8 . 81 91 29 8 67 241 7 . 30 66 156 69 Cannon 480 | . . . . . . . . . . . . 48 34 4 35 19 8 . . 11 170 151 Launcher 69 | . . 1 . . 1 8 . 4 . 1 11 . . . 7 11 3 . . . 7 15 Special 6 | . . . . . . . . . . . . . . . . . . . . 1 . 5 Kinetic 636 | . 68 16 . . 95 . . . . . . 34 34 8 37 131 4 . . 31 128 50 Thermal 1133 | . . . . . 152 55 40 10 8 . 81 105 29 4 65 129 11 . 30 46 198 170 Explosive 51 | . . 1 . . 1 . . 4 . . 11 . . . 7 6 3 . . . 3 15 Electromagnetic 18 | . . . . . . 8 . . . 1 . . . . . 5 . . . . 4 . Robot Hit Streak 32 | . 9 3 . . 17 8 5 11 4 4 14 30 19 11 32 17 8 . 16 16 29 26 Robot Miss Streak 9 | . 9 2 . . 6 3 3 1 1 . 2 3 4 . 3 3 2 . 1 2 2 2 Penetration Max 2 | . . . . . . . . . . . . 2 . 1 1 1 . . . 1 2 1 Secondary Targets 15 | . 2 . . . 1 . 1 . . . 1 1 . . . 6 . . . 3 . . Max Gunslinging Chain 1 | . 1 . . . 1 . 1 . . . 1 1 . . . 1 . . . 1 . . Shots Hit Robots 1290 | . 42 8 . . 163 33 29 9 6 2 64 93 62 10 69 199 7 . 26 57 242 169 Core Hits 679 | . 19 8 . . 67 25 15 16 3 1 43 40 13 8 40 87 8 . 10 26 121 129 Critical Kills 32 | . . . . . . . . . . . . . . 1 4 6 . . . 1 18 2 Critical Parts Destroyed 58 | . . . . . . . . . . . . . . 1 6 14 . . . 3 32 2 Critical Strikes 121 | . . . . . 5 . . 1 . . 5 1 . 2 11 28 . . 3 8 53 4 Burn 26 | . . . . . 5 . . . . . 5 1 . . . 8 . . 3 4 . . Meltdown 1 | . . . . . . . . . . . . . . . 1 . . . . . . . Destroy 93 | . . . . . . . . . . . . . . 2 10 20 . . . 4 53 4 Puncture 1 | . . . . . . . . 1 . . . . . . . . . . . . . . Melee Attacks 84 | . . . . . 2 . 25 13 9 9 . 9 9 2 . 6 . . . . . . Impact . | . . . . . . . . . . . . . . . . . . . . . . . Slashing 9 | . . . . . . . . . . 7 . 2 . . . . . . . . . . Piercing 51 | . . . . . 2 . 25 13 9 2 . . . . . . . . . . . . Sneak Attacks 14 | . . . . . . . 1 1 . 1 . 4 2 . . 5 . . . . . . Combat Hostiles 2 | . . . . . . . . . . . . . 2 . . . . . . . . . Follow-up Attacks . | . . . . . . . . . . . . . . . . . . . . . . . Damage Inflicted 42071 | . 464 308 . . 2737 1054 668 810 120 111 2221 2230 1454 533 2522 5395 491 . 641 1489 9189 9634 Guns 17853 | . 464 115 . . 2610 564 543 108 120 . 1065 1611 498 203 742 3762 105 . 641 1267 2109 1326 Cannons 11978 | . . . . . . . . . . . . 619 956 131 848 264 35 . . 222 4541 4362 Explosions 11952 | . . 193 . . 127 490 . 632 . 18 1156 . . 199 932 1369 351 . . . 2539 3946 Melee 288 | . . . . . . . 125 70 . 93 . . . . . . . . . . . . Ramming . | . . . . . . . . . . . . . . . . . . . . . . . Kinetic 8115 | . 464 115 . . 1058 . . . . . . 711 725 203 361 1713 32 . . 596 1270 867 Thermal 22584 | . . . . . 1552 656 543 108 120 . 1065 1519 729 131 1229 2313 108 . 641 893 6156 4821 Explosive 9783 | . . 193 . . 127 . . 632 . . 1156 . . 199 932 970 351 . . . 1277 3946 Electromagnetic 1301 | . . . . . . 398 . . . 18 . . . . . 399 . . . . 486 . Impact . | . . . . . . . . . . . . . . . . . . . . . . . Slashing . | . . . . . . . . . . . . . . . . . . . . . . . Piercing 288 | . . . . . . . 125 70 . 93 . . . . . . . . . . . . Highest Corruption 39 | . 1 1 1 1 . . . . . . 2 . 23 23 23 14 14 6 6 6 39 11 Average Corruption 8 | . 1 1 1 1 . . . . . . 1 . 11 23 23 9 9 6 6 6 9 4 Corruption Purged 20 | . . . . . . . . . . . . . . . . . 8 . . . 12 . Effects 233 | . 1 2 1 . . . . . . . 6 . 12 12 33 56 29 5 8 26 39 3 Message Errors 60 | . . . 1 . . . . . . . 2 . 4 5 4 18 9 1 1 5 8 2 Matter Fused 46 | . . . . . . . . . . . . . 2 3 9 11 4 . 2 6 8 1 Heat Flow Errors 26 | . . . . . . . . . . . 1 . 1 2 4 3 6 . 2 5 2 . Energy Discharges 36 | . 1 2 . . . . . . . . 2 . 1 1 3 8 3 1 1 3 10 . Parts Rejected 2 | . . . . . . . . . . . . . . . 1 1 . . . . . . Data Loss (minor) 29 | . . . . . . . . . . . 1 . 2 1 1 8 4 2 . 5 5 . Data Loss (major) 11 | . . . . . . . . . . . . . 1 . 2 2 3 1 2 . . . Misfires 5 | . . . . . . . . . . . . . . . 1 1 . . . 2 1 . Alerts 2 | . . . . . . . . . . . . . . . . 1 . . . . 1 . Weapon Failures 16 | . . . . . . . . . . . . . 1 . 8 3 . . . . 4 . Overload Shots . | . . . . . . . . . . . . . . . . . . . . . . . Overflow Damage 625 | . . . . . . . 60 . . . 23 45 9 . 18 49 31 . . . 133 257 Projectiles 298 | . . . . . . . . . . . . 45 9 . 3 . . . . . 94 147 Explosions 267 | . . . . . . . . . . . 23 . . . 15 49 31 . . . 39 110 Melee 60 | . . . . . . . 60 . . . . . . . . . . . . . . . Knockbacks 11 | . . . . . . . . . . . . . . . . . . . . 3 8 . Impact . | . . . . . . . . . . . . . . . . . . . . . . . Kinetic 8 | . . . . . . . . . . . . . . . . . . . . 2 6 . Secondary 3 | . . . . . . . . . . . . . . . . . . . . 1 2 . Self-Inflicted Damage 555 | . . 19 . . 36 30 . 44 . . 42 . . . 5 . 24 . . . 243 112 Shots 18 | . . 1 . . 1 2 . 2 . . 1 . . . 1 . 1 . . . 7 2 Rammed . | . . . . . . . . . . . . . . . . . . . . . . . Targets Rammed . | . . . . . . . . . . . . . . . . . . . . . . . Kicked . | . . . . . . . . . . . . . . . . . . . . . . . Crushed . | . . . . . . . . . . . . . . . . . . . . . . . Highest Temperature 389 | . . 22 . . 122 11 . 21 . . 199 387 174 92 298 365 258 . 174 197 187 389 Average Temperature 94 | . . 11 . . 54 5 . 18 . . 88 134 63 37 73 104 93 . 95 50 18 111 Received Heat Transfer 4844 | . 102 129 . . 576 231 180 74 . 6 261 351 . 18 723 564 18 . . 39 789 783 Effects 10 | . . . . . . . . . . . . 4 . . . 4 . . . . . 2 Shutdowns 2 | . . . . . . . . . . . . 1 . . . . . . . . . 1 Energy Bleed 3 | . . . . . . . . . . . . 2 . . . . . . . . . 1 Interference 3 | . . . . . . . . . . . . . . . . 3 . . . . . . Matter Decay 1 | . . . . . . . . . . . . 1 . . . . . . . . . . Short Circuit 1 | . . . . . . . . . . . . . . . . 1 . . . . . . Siege Activations 36 | . . . . . . . . . . . . . . . . 5 1 . . 6 15 9 Total Turns 750 | . . . . . . . . . . . . . . . . 117 15 . . 83 365 170 Longest Duration 94 | . . . . . . . . . . . . . . . . 49 15 . . 23 94 33 Robots Corrupted 2 | . . . . . . . . . . 2 . . . . . . . . . . . . Combat Hostiles 2 | . . . . . . . . . . 2 . . . . . . . . . . . . Parts Fried 7 | . . . . . . 2 . . . 3 . . . . . 2 . . . . . . Impact Corruptions . | . . . . . . . . . . . . . . . . . . . . . . . Robots Melted 4 | . . . . . . . . . . . 1 . . . 1 1 . . 1 . . . Combat Hostiles 4 | . . . . . . . . . . . 1 . . . 1 1 . . 1 . . . Parts Melted 67 | . . . . . 11 1 5 . . . 6 7 . . 5 18 . . . 5 7 2 Heat Transferred 30532 | . . . . . 3885 1260 962 222 222 . 2442 2567 1200 200 1713 4577 161 . 1081 1706 5012 3322 Parts Sabotaged 4 | . . . . . . . . . . . . . . . . . . . . . 2 2 Parts Stolen . | . . . . . . . . . . . . . . . . . . . . . . . Parts Stripped . | . . . . . . . . . . . . . . . . . . . . . . . Power Chain Reactions 7 | . . . . . . 3 . . . . . . . . . . . . . . 4 . Missiles Intercepted . | . . . . . . . . . . . . . . . . . . . . . . . Alert | -11 -10 -10 -10 -9 -8 -8 -7 -7 -7 -7 -6 -6 -6 -6 -6 -5 -5 -5 -5 -4 -4 -3 ------- Run | Scr Mat Min Exi Min Mat Gar Fac Low Low Dat Pro Fac Was Fac Gar Fac Upp Upp Zhi Pro Fac Res Peak Influence 1158 | . 162 125 . 96 344 575 310 . . . . 606 96 309 706 1022 . . . . 1158 1144 Initial 607 | . . . . . . 71 301 . . . . . 78 67 216 370 . . . . . 607 Average 318 | . 80 64 . 2 119 361 224 . . . . 212 88 211 488 630 . . . . 356 806 Maximum Alert Level 4 | . . . . . 1 2 1 . . . . 2 . 1 3 3 . . . . 4 4 Low Security (%) 51 | 100 100 100 . 100 81 31 38 . . . . 44 100 32 . 13 . . . . 59 . Level 1 19 | . . . . . 18 6 61 . . . . 34 . 67 45 11 . . . . 15 . Level 2 9 | . . . . . . 62 . . . . . 21 . . 30 15 . . . . . 11 Level 3 18 | . . . . . . . . . . . . . . . 24 59 . . . . 14 82 Level 4 1 | . . . . . . . . . . . . . . . . . . . . . 9 6 Level 5 . | . . . . . . . . . . . . . . . . . . . . . . . High Security . | . . . . . . . . . . . . . . . . . . . . . . . Max Security . | . . . . . . . . . . . . . . . . . . . . . . . Squads Dispatched 44 | . 1 . . . 2 . 4 . . . . 6 . . . 9 . . . . 11 11 Investigation 5 | . . . . . . . 1 . . . . 2 . . . . . . . . 1 1 Extermination 10 | . . . . . . . 2 . . . . 1 . . . 2 . . . . 4 1 Reinforcement 19 | . 1 . . . 2 . 1 . . . . 3 . . . 6 . . . . 2 4 Assault 10 | . . . . . . . . . . . . . . . . 1 . . . . 4 5 Garrison . | . . . . . . . . . . . . . . . . . . . . . . . Intercept . | . . . . . . . . . . . . . . . . . . . . . . . Construction Impeded 6 | . . . . . . . . . . . . 1 . . . 4 . . . . . 1 Haulers Reinforced 3 | . . . . . . . . . . . . . . . . . . . . . 1 2 Cargo Convoy Interrupts 3 | . . . . . . . . . . . . 1 . . . 1 . . . . 1 . Stealth | -11 -10 -10 -10 -9 -8 -8 -7 -7 -7 -7 -6 -6 -6 -6 -6 -5 -5 -5 -5 -4 -4 -3 --------- Run | Scr Mat Min Exi Min Mat Gar Fac Low Low Dat Pro Fac Was Fac Gar Fac Upp Upp Zhi Pro Fac Res Distress Signals 7 | . . . . . 3 . . . . . . 1 . . . 1 . . . . 1 1 Communications Jammed 31 | . . . . . . . . . . . . . . . . . . . . . . 31 Distress Signals 31 | . . . . . . . . . . . . . . . . . . . . . . 31 Times Spotted 370 | . 19 5 . 2 43 17 10 7 1 4 15 20 6 6 21 47 6 . . 11 71 59 Peak Tracking Total 15 | . 4 3 . 2 5 6 3 4 1 4 4 6 4 5 7 6 5 . . 3 15 12 Tactical Retreats 17 | . . . . . 2 1 . . . . 1 . . . 3 4 1 . . . 3 2 Traps | -11 -10 -10 -10 -9 -8 -8 -7 -7 -7 -7 -6 -6 -6 -6 -6 -5 -5 -5 -5 -4 -4 -3 ------- Run | Scr Mat Min Exi Min Mat Gar Fac Low Low Dat Pro Fac Was Fac Gar Fac Upp Upp Zhi Pro Fac Res Traps Triggered 22 | . 1 . . . 1 8 . . . . . 1 . . 7 . . . . . 3 1 Indirectly . | . . . . . . . . . . . . . . . . . . . . . . . Trap Hack Attempts 19 | . . . . . . . . . . . . 19 . . . . . . . . . . Triggered . | . . . . . . . . . . . . . . . . . . . . . . . Disarmed . | . . . . . . . . . . . . . . . . . . . . . . . Reprogrammed 6 | . . . . . . . . . . . . 6 . . . . . . . . . . Reused 1 | . . . . . . . . . . 1 . . . . . . . . . . . . Traps Extracted . | . . . . . . . . . . . . . . . . . . . . . . . Installed 3 | . . . . . . . . . . 3 . . . . . . . . . . . . Triggered 6 | . . . . . . . . 1 . . . . . . . 1 4 . . . . . Machines | -11 -10 -10 -10 -9 -8 -8 -7 -7 -7 -7 -6 -6 -6 -6 -6 -5 -5 -5 -5 -4 -4 -3 ---------- Run | Scr Mat Min Exi Min Mat Gar Fac Low Low Dat Pro Fac Was Fac Gar Fac Upp Upp Zhi Pro Fac Res Machines Disabled 15 | . . . . 1 . 1 . . . . . 1 . 4 1 3 . . . . 4 . Max in Single Turn 2 | . . . . . . 1 . . . . . 1 . 2 1 1 . . . . 1 . Garrison Access 4 | . . . . . . . 1 . . . . 1 . . . 1 . . . . . 1 Garrison Relay 2 | . . . . . . 1 . . . . . . . . 1 . . . . . . . Machines Sabotaged . | . . . . . . . . . . . . . . . . . . . . . . . Garrisons Compromised 1 | . . . . . . . . . . . . . . . . 1 . . . . . . Overloaded Fab Kills . | . . . . . . . . . . . . . . . . . . . . . . . Fab Network Shutdowns . | . . . . . . . . . . . . . . . . . . . . . . . Hacking | -11 -10 -10 -10 -9 -8 -8 -7 -7 -7 -7 -6 -6 -6 -6 -6 -5 -5 -5 -5 -4 -4 -3 --------- Run | Scr Mat Min Exi Min Mat Gar Fac Low Low Dat Pro Fac Was Fac Gar Fac Upp Upp Zhi Pro Fac Res Machines Accessed 78 | . 8 . 1 . 10 . 9 . . 3 . 15 . 2 . 9 . 2 4 . 12 3 Terminals 41 | . 6 . . . 6 . 4 . . . . 11 . 1 . 4 . . . . 8 1 Fabricators 4 | . . . . . . . 2 . . . . 1 . . . 1 . . . . . . Repair Stations 8 | . 1 . . . 2 . 1 . . . . 1 . . . 1 . . . . 2 . Recycling Units 4 | . 1 . . . . . . . . . . 1 . . . 1 . . . . . 1 Scanalyzers 5 | . . . . . 1 . 1 . . . . . . . . 1 . . . . 2 . Garrison Access 6 | . . . . . 1 . 1 . . . . 1 . 1 . 1 . . . . . 1 Total Hacks 243 | . 32 . 1 . 26 . 25 . . 21 . 44 . 4 . 24 . 5 17 . 38 6 Successful 142 | . 14 . 1 . 16 . 11 . . 21 . 23 . 4 . 16 . 5 17 . 11 3 Failed 101 | . 18 . . . 10 . 14 . . . . 21 . . . 8 . . . . 27 3 Catastrophic 16 | . 2 . . . 2 . 1 . . . . 5 . . . 1 . . . . 4 1 Database Lockouts . | . . . . . . . . . . . . . . . . . . . . . . . Manual 87 | . 16 . . . 14 . 15 . . . . 15 . . . 7 . . . . 20 . Terminals 121 | . 25 . . . 19 . 10 . . . . 27 . 2 . 11 . . . . 25 2 Fabricators 15 | . . . . . . . 6 . . . . 5 . . . 4 . . . . . . Repair Stations 30 | . 4 . . . 4 . 4 . . . . 7 . . . 3 . . . . 8 . Recycling Units 8 | . 3 . . . . . . . . . . 2 . . . 1 . . . . . 2 Scanalyzers 13 | . . . . . 2 . 3 . . . . . . . . 3 . . . . 5 . Garrison Access 12 | . . . . . 1 . 2 . . . . 3 . 2 . 2 . . . . . 2 Terminal Hacks 77 | . 7 . 1 . 8 . 2 . . 21 . 7 . 2 . 4 . 5 17 . 2 1 Record 21 | . . . 1 . . . . . . 11 . . . . . . . 4 5 . . . Part Schematic 14 | . 1 . . . 1 . . . . 7 . 1 . . . . . . 4 . . . Robot Analysis 6 | . 1 . . . . . . . . . . 1 . . . . . . 4 . . . Prototype ID Bank 14 | . 3 . . . 2 . . . . 3 . . . 1 . . . . 4 . 1 . Open Door 1 | . . . . . . . . . . . . . . . . . . 1 . . . . Level Access Points 1 | . . . . . . . . . . . . . . 1 . . . . . . . . Branch Access Points 3 | . . . . . . . 1 . . . . . . . . 1 . . . . . 1 Terminal Index 4 | . . . . . 1 . 1 . . . . . . . . 1 . . . . 1 . Garrison Index 1 | . . . . . . . . . . . . . . . . 1 . . . . . . Alert Level 1 | . . . . . 1 . . . . . . . . . . . . . . . . . Unreport Threat 5 | . . . . . 2 . . . . . . 2 . . . 1 . . . . . . Locate Traps 5 | . 2 . . . 1 . . . . . . 2 . . . . . . . . . . Recall Investigation 1 | . . . . . . . . . . . . 1 . . . . . . . . . . Fabricator Hacks 6 | . . . . . . . . . . . . 4 . . . 2 . . . . . . Load Schematic 3 | . . . . . . . . . . . . 2 . . . 1 . . . . . . Build 3 | . . . . . . . . . . . . 2 . . . 1 . . . . . . Repair Station Hacks 21 | . 4 . . . 4 . 1 . . . . 6 . . . 2 . . . . 4 . Scan Component 11 | . 2 . . . 2 . 1 . . . . 3 . . . 1 . . . . 2 . Repair 10 | . 2 . . . 2 . . . . . . 3 . . . 1 . . . . 2 . Recycling Unit Hacks 2 | . 1 . . . . . . . . . . . . . . 1 . . . . . . Retrieve Components 2 | . 1 . . . . . . . . . . . . . . 1 . . . . . . Scanalyzer 6 | . . . . . 1 . 2 . . . . . . . . 2 . . . . 1 . Insert Component 4 | . . . . . 1 . 1 . . . . . . . . 1 . . . . 1 . Analyze 2 | . . . . . . . 1 . . . . . . . . 1 . . . . . . Garrison Access Hacks 12 | . . . . . 1 . 2 . . . . 3 . 2 . 2 . . . . . 2 Unlock Access 3 | . . . . . 1 . . . . . . 1 . 1 . . . . . . . . Seal Access 4 | . . . . . . . 1 . . . . 1 . . . 1 . . . . . 1 Coupler Status 5 | . . . . . . . 1 . . . . 1 . 1 . 1 . . . . . 1 Unauthorized Hacks 18 | . 2 . . . 2 . 4 . . . . 3 . . . 3 . . . . 4 . Terminals 17 | . 2 . . . 2 . 4 . . . . 3 . . . 2 . . . . 4 . Assimilate 1 | . . . . . . . 1 . . . . . . . . . . . . . . . Botnet 12 | . 1 . . . 2 . 2 . . . . 2 . . . 2 . . . . 3 . Operators 4 | . 1 . . . . . 1 . . . . 1 . . . . . . . . 1 . Fabricators 1 | . . . . . . . . . . . . . . . . 1 . . . . . . Prioritize 1 | . . . . . . . . . . . . . . . . 1 . . . . . . Repair Stations . | . . . . . . . . . . . . . . . . . . . . . . . Recycling Units . | . . . . . . . . . . . . . . . . . . . . . . . Scanalyzers . | . . . . . . . . . . . . . . . . . . . . . . . Garrison Access . | . . . . . . . . . . . . . . . . . . . . . . . Data Cores Recovered . | . . . . . . . . . . . . . . . . . . . . . . . Used . | . . . . . . . . . . . . . . . . . . . . . . . Hacking Detections 63 | . 7 . . . 8 . 7 . . . . 15 . 2 . 9 . . . . 12 3 Full Trace Events 5 | . . . . . . . 1 . . . . 2 . . . . . . . . 1 1 Feedback Events 1 | . . . . . . . . . . . . . . . . . . . . . . 1 Corruption 1 | . . . . . . . . . . . . . . . . . . . . . . 1 Feedback Blocked . | . . . . . . . . . . . . . . . . . . . . . . . Robot Schematics Acquired . | . . . . . . . . . . . . . . . . . . . . . . . Robots Built . | . . . . . . . . . . . . . . . . . . . . . . . Matter . | . . . . . . . . . . . . . . . . . . . . . . . Time . | . . . . . . . . . . . . . . . . . . . . . . . Total Robot Build Rating . | . . . . . . . . . . . . . . . . . . . . . . . Part Schematics Acquired 16 | . 1 . . . 1 . 1 . . 7 . 1 . . . 1 . . 4 . . . Parts Built 4 | . . . . . . . . . . . . 2 . . . 2 . . . . . . Matter 599 | . . . . . . . . . . . . 387 . . . 212 . . . . . . Time 309 | . . . . . . . . . . . . 203 . . . 106 . . . . . . Total Part Build Rating 18 | . . . . . . . . . . . . 6 . . . 12 . . . . . . Parts Repaired 10 | . 2 . . . 2 . . . . . . 3 . . . 1 . . . . 2 . Time 462 | . 52 . . . 174 . . . . . . 120 . . . 22 . . . . 94 . Parts Recycled . | . . . . . . . . . . . . . . . . . . . . . . . Recycled Matter . | . . . . . . . . . . . . . . . . . . . . . . . Retrieved Matter . | . . . . . . . . . . . . . . . . . . . . . . . Retrieved Components 11 | . 1 . . . . . . . . . . . . . . 10 . . . . . . Parts Scanalyzed 3 | . . . . . 1 . 1 . . . . . . . . 1 . . . . . . Part Schematics Acquired 2 | . . . . . . . 1 . . . . . . . . 1 . . . . . . Parts Damaged . | . . . . . . . . . . . . . . . . . . . . . . . Bothacking | -11 -10 -10 -10 -9 -8 -8 -7 -7 -7 -7 -6 -6 -6 -6 -6 -5 -5 -5 -5 -4 -4 -3 ------------ Run | Scr Mat Min Exi Min Mat Gar Fac Low Low Dat Pro Fac Was Fac Gar Fac Upp Upp Zhi Pro Fac Res Used RIF Installer 2 | . . . . . . 1 . . . . . . . . 1 . . . . . . . Command Fork 1 | . . . . . . . . . . . . . . . 1 . . . . . . . Robots Hacked 16 | . . . . . . . . . . . . 5 6 1 . 2 . . . 1 . 1 Non-combat 8 | . . . . . . . . . . . . 5 . 1 . 1 . . . . . 1 Combat 7 | . . . . . . . . . . . . . 6 . . 1 . . . . . . Robot Hacks Applied 22 | . . . . . . . . . . . . 5 7 1 . 5 . . . . . 4 parse_system 1 | . . . . . . . . . . . . 1 . . . . . . . . . . generate_echo 1 | . . . . . . . . . . . . . . . . 1 . . . . . . find_chute 1 | . . . . . . . . . . . . 1 . . . . . . . . . . find_recycling 1 | . . . . . . . . . . . . 1 . . . . . . . . . . check_alert 1 | . . . . . . . . . . . . . . . . . . . . . . 1 purge_threat 4 | . . . . . . . . . . . . . . . . 2 . . . . . 2 find_terminals 1 | . . . . . . . . . . . . . . . . . . . . . . 1 disarm_traps 1 | . . . . . . . . . . . . . . . . 1 . . . . . . map_route 1 | . . . . . . . . . . . . 1 . . . . . . . . . . relay_feed 1 | . . . . . . . . . . . . . . 1 . . . . . . . . ignore_targets 6 | . . . . . . . . . . . . . 6 . . . . . . . . . overload_power 1 | . . . . . . . . . . . . . 1 . . . . . . . . . formatsys_low 1 | . . . . . . . . . . . . 1 . . . . . . . . . . formatsys_high 1 | . . . . . . . . . . . . . . . . 1 . . . . . . Manual 1 | . . . . . . . . . . . . . . . . . . . . 1 . . Relay Couplers Released 14 | . . . . . . 4 . . . . . 1 . . 5 3 . . . . . 1 Machine Destruction 14 | . . . . . . 4 . . . . . 1 . . 5 3 . . . . . 1 Attached 6 | . . . . . . . . . . . . 1 1 . . 2 . . . . 1 1 Robots Rewired . | . . . . . . . . . . . . . . . . . . . . . . . Allies Hacked 2 | . . . . . . . . . . . . . . . . 2 . . . . . . Hacks Repelled . | . . . . . . . . . . . . . . . . . . . . . . . Allies | -11 -10 -10 -10 -9 -8 -8 -7 -7 -7 -7 -6 -6 -6 -6 -6 -5 -5 -5 -5 -4 -4 -3 -------- Run | Scr Mat Min Exi Min Mat Gar Fac Low Low Dat Pro Fac Was Fac Gar Fac Upp Upp Zhi Pro Fac Res Total Allies 25 | . . 4 . . . . . . . . . 1 . . . 19 . . . 1 . . Largest Group 10 | . . 4 3 3 3 . . . . . . 1 . . . 10 . . . 1 . . Highest-Rated Group 404 | . . 71 40 40 40 . . . . . . 10 . . . 404 . . . 115 . . Highest-Rated Ally 115 | . . 31 16 16 16 . . . . . . 10 . . . 74 . . . 115 . . Total Orders . | . . . . . . . . . . . . . . . . . . . . . . . Ally Attacks 78 | . . . . 8 23 . . . . . . . . . . 47 . . . . . . Total Damage 1495 | . . . . 82 291 . . . . . . . . . . 1122 . . . . . . Kills 16 | . . . . 3 3 . . . . . . . . . . 10 . . . . . . Allies Corrupted 1 | . . . . . . . . . . . . . . . . 1 . . . . . . Allies Melted . | . . . . . . . . . . . . . . . . . . . . . . . Intel | -11 -10 -10 -10 -9 -8 -8 -7 -7 -7 -7 -6 -6 -6 -6 -6 -5 -5 -5 -5 -4 -4 -3 ------- Run | Scr Mat Min Exi Min Mat Gar Fac Low Low Dat Pro Fac Was Fac Gar Fac Upp Upp Zhi Pro Fac Res Robot Analysis Total 6 | . 1 . . . . . . . . . . 1 . . . . . . 4 . . . Derelict Logs Recovered 10 | . . 1 . 1 . . . 1 3 . 1 . . . . . 1 1 . 1 . . Drone Launches . | . . . . . . . . . . . . . . . . . . . . . . . Drone Recoveries . | . . . . . . . . . . . . . . . . . . . . . . . Exploration | -11 -10 -10 -10 -9 -8 -8 -7 -7 -7 -7 -6 -6 -6 -6 -6 -5 -5 -5 -5 -4 -4 -3 ------------- Run | Scr Mat Min Exi Min Mat Gar Fac Low Low Dat Pro Fac Was Fac Gar Fac Upp Upp Zhi Pro Fac Res Turns Passed 20774 | 49 936 679 207 511 2237 644 1149 1151 818 308 1227 1796 334 279 556 2350 743 332 339 859 2286 984 Spaces Moved 10503 | 40 607 463 154 332 1250 366 713 573 457 156 336 911 158 157 237 1073 432 204 173 439 909 363 Core 10 | 10 . . . . . . . . . . . . . . . . . . . . . . Treads 4028 | . . . . . . 17 44 573 457 156 336 7 . . . 1 349 204 173 439 909 363 Legs . | . . . . . . . . . . . . . . . . . . . . . . . Wheels 6465 | 30 607 463 154 332 1250 349 669 . . . . 904 158 157 237 1072 83 . . . . . Hover . | . . . . . . . . . . . . . . . . . . . . . . . Flight . | . . . . . . . . . . . . . . . . . . . . . . . Fastest Speed 50 | 50 100 115 130 145 110 120 120 170 170 170 167 130 150 150 145 145 150 160 160 160 160 155 Average Speed 148 | 91 111 128 132 145 122 127 123 170 170 170 226 136 150 160 146 164 158 160 160 160 166 157 Slowest Speed 270 | 100 115 130 145 145 170 270 170 170 170 170 270 267 150 165 165 260 160 160 160 160 260 260 Overloaded Moves . | . . . . . . . . . . . . . . . . . . . . . . . Propulsion Burnouts . | . . . . . . . . . . . . . . . . . . . . . . . Robots Hopped . | . . . . . . . . . . . . . . . . . . . . . . . Cave-ins Triggered . | . . . . . . . . . . . . . . . . . . . . . . . Exploration Rate (%) 50 | 3 96 95 53 56 90 61 16 67 63 76 52 28 78 6 37 25 64 36 60 74 21 9 Regions Visited 22 Branch Regions 11 Pre-discovered Areas 8 | . . . 1 2 . . . . . 1 . . . . . . . . 3 1 . . Known Exits Taken 6 | . . . . . 1 . 1 . . . . . . 1 . 1 . 1 . . 1 . Unknown Exits Taken 12 | 1 1 1 1 1 . . . 1 1 1 1 . . . . . 1 . 1 1 . . Scrap Searched 17 | . . 2 . 2 . . . 1 3 . 2 . . . . . 3 1 . 3 . . Spaces Dug 88 | . . . . . 1 . 16 9 6 7 . 21 . . . 6 3 . . . 13 6 Terrain Destroyed 718 | . . 4 . . 12 10 16 67 6 7 117 28 3 33 48 96 51 . . 3 103 114 Melee 41 | . . . . . 1 . 16 9 6 7 . 2 . . . . . . . . . . Projectile 122 | . . . . . . . . . . . 1 26 3 . 4 13 8 . . 3 31 33 AOE 552 | . . 4 . . 11 10 . 58 . . 116 . . 33 44 81 42 . . . 72 81 Terrain Rammed . | . . . . . . . . . . . . . . . . . . . . . . . Walls Destroyed . | . . . . . . . . . . . . . . . . . . . . . . . Machines Disabled . | . . . . . . . . . . . . . . . . . . . . . . . Actions | -11 -10 -10 -10 -9 -8 -8 -7 -7 -7 -7 -6 -6 -6 -6 -6 -5 -5 -5 -5 -4 -4 -3 --------- Run | Scr Mat Min Exi Min Mat Gar Fac Low Low Dat Pro Fac Was Fac Gar Fac Upp Upp Zhi Pro Fac Res Total 14336 | 49 813 528 157 361 1748 480 903 717 476 186 719 1385 209 176 375 1494 481 210 224 559 1437 649 Wait 1899 | . 121 54 2 25 221 2 91 107 4 3 307 267 13 5 19 172 24 2 5 79 266 110 Move 10480 | 39 606 462 153 331 1249 364 712 572 456 155 335 911 157 156 235 1072 431 203 172 438 908 363 Hop . | . . . . . . . . . . . . . . . . . . . . . . . Pick Up 211 | 3 21 . . 3 38 3 9 3 1 5 7 29 3 2 7 24 1 1 7 2 20 22 Fast Attach 104 | 6 2 . . . 10 2 3 1 . . 1 9 . . 3 12 2 2 8 1 33 9 Attach 90 | . . . . . 9 2 5 1 . . 7 7 . 2 5 10 1 . 3 3 17 18 Detach 13 | . . . . . . 1 1 . . . . 2 . . . 2 1 . . . 3 3 Swap 219 | 1 10 2 1 2 33 5 25 7 2 5 7 23 4 3 6 39 3 . . 6 24 11 Drop 276 | . 19 1 1 . 61 5 12 5 . 6 . 39 . 2 8 43 4 2 14 4 30 20 Fire 836 | . 34 9 . . 125 33 20 8 4 1 55 70 23 4 52 114 14 . 15 26 136 93 Melee 83 | . . . . . 2 . 25 13 9 8 . 9 9 2 . 6 . . . . . . Ram . | . . . . . . . . . . . . . . . . . . . . . . . Kick . | . . . . . . . . . . . . . . . . . . . . . . . Crush . | . . . . . . . . . . . . . . . . . . . . . . . Escape Stasis 103 | . . . . . . 63 . . . . . . . . 40 . . . . . . . Rewire . | . . . . . . . . . . . . . . . . . . . . . . . Trap 22 | . . . . . . . . . . 3 . 19 . . . . . . . . . . Miscellaneous . | . . . . . . . . . . . . . . . . . . . . . . . Route ------- -11/Scrapyard -10/Materials (discovered 4 exits: [*Mat x3] / [*Min]) -10/Mines (discovered 2 exits: [*Mat] / *Exi) -10/Exiles -9/Mines (discovered 2 exits: *Mat x2) -8/Materials (discovered 5 exits: *Fac x3 / [*Sto] / Gar) -8/Garrison (discovered 3 exits: *Fac x3) -7/Factory (discovered 2 exits: *Low x2) -7/Lower Caves -7/Lower Caves (discovered 2 exits: *Fac / *Dat) -7/Data Miner -6/Proximity Caves -6/Factory -6/Waste -6/Factory (discovered 5 exits: Fac x4 / Gar) -6/Garrison -5/Factory (discovered 5 exits: *Fac / *Upp x2 / Ext x2) -5/Upper Caves -5/Upper Caves -5/Zhirov -4/Proximity Caves -4/Factory (discovered 3 exits: *Res x2 / Arm) -3/Research (discovered 2 exits: Qua x2) History --------- Turn | Location | Event 34 | -11/Scrapyard | Discovered new exit (range 14) 50 | -11/Scrapyard | Entered Materials 250 | -10/Materials | Discovered new exit (range 3) 307 | -10/Materials | Repaired Assault Rifle 328 | -10/Materials | Build established: Mutant 335 | -10/Materials | Repaired Lgt. Treads 629 | -10/Materials | Discovered new exit (range 16) 713 | -10/Materials | Discovered new exit (range 4) 852 | -10/Materials | Discovered new exit (range 9) 986 | -10/Materials | Entered Mines 1173 | -10/Mines | Learned location of 1 exit from Materials 1198 | -10/Mines | Received a Rocket Launcher from a helpful Derelict 1337 | -10/Mines | Received a Mining Laser from a helpful Derelict 1389 | -10/Mines | Assisted by bots powering up and referring to "LRC-V3" 1543 | -10/Mines | Discovered new exit (range 8) 1648 | -10/Mines | Deemed a non-threat by the Exiles lab entrance 1648 | -10/Mines | Discovered new exit (range 5) 1665 | -10/Mines | Entered Exiles 1665 | -10/Exiles | Accompanied by 3 allies 1697 | -10/Exiles | Met 8R-AWN 1716 | -10/Exiles | Met EX-HEX 1772 | -10/Exiles | Met EX-DEC 1795 | -10/Exiles | Learned location of Zion (-6) 1857 | -10/Exiles | Discovered new exit (range 11) 1872 | -10/Exiles | Entered Mines 1872 | -9/Mines | Accompanied by 3 allies 1949 | -9/Mines | Learned location of Storage (-8) 2041 | -9/Mines | Discovered new exit (range 10) 2133 | -9/Mines | Discovered new exit (range 8) 2191 | -9/Mines | Found a damaged Exp. Sensor Array with a note attached 2195 | -9/Mines | Found Prototype Device 2383 | -9/Mines | Entered Materials 2383 | -8/Materials | Accompanied by 3 allies 2383 | -8/Materials | Evolved 4 slots: Propulsion x1, Utility x3 2384 | -8/Materials | Identified exit to Factory 2815 | -8/Materials | Discovered exit to Factory (range 7) 2898 | -8/Materials | Identified Exp. Sensor Array 2927 | -8/Materials | Build established: Scavenger-Mutant 3205 | -8/Materials | Discovered new exit (range 4) 3908 | -8/Materials | Repaired Broken Exp. Sensor Array 4082 | -8/Materials | Repaired Imp. Heat Sink 4389 | -8/Materials | Discovered exit to Factory (range 16) 4619 | -8/Materials | Identified exit to Garrison 4620 | -8/Materials | Entered Garrison 4665 | -8/Garrison | Triggered checkpoint 4680 | -8/Garrison | Garrison Relay disabled 4795 | -8/Garrison | Triggered checkpoint 4796 | -8/Garrison | Triggered checkpoint 4802 | -8/Garrison | Triggered checkpoint 4885 | -8/Garrison | Destroyed 11 combat bots 4977 | -8/Garrison | Triggered checkpoint 5013 | -8/Garrison | Discovered exit to Factory (range 15) 5109 | -8/Garrison | Discovered exit to Factory (range 10) 5240 | -8/Garrison | Discovered exit to Factory (range 10) 5258 | -8/Garrison | Installed Relay Interface Framework 5264 | -8/Garrison | Entered Factory 5264 | -7/Factory | Evolved 2 slots: Propulsion x1, Utility x1 5929 | -7/Factory | Identified exit to Lower Caves 6413 | -7/Factory | Entered Lower Caves 6593 | -7/Lower Caves | Build established: Mutant 7347 | -7/Lower Caves | Ambushed by wild Derelicts 7509 | -7/Lower Caves | Discovered new exit (range 14) 7514 | -7/Lower Caves | Learned 4 Factory zone layouts 7564 | -7/Lower Caves | Entered another Lower Caves area 7575 | -7/Lower Caves | Discovered new exit (range 9) 7625 | -7/Lower Caves | Encountered a Warlord checkpoint 7865 | -7/Lower Caves | Attracted the attention of an 0b10 checkpoint 7907 | -7/Lower Caves | Learned Factory terminal intel 8181 | -7/Lower Caves | Learned location of 1 exit from Factory 8291 | -7/Lower Caves | Discovered new exit (range 11) 8341 | -7/Lower Caves | Learned Factory trap positions 8382 | -7/Lower Caves | Entered Data Miner 8382 | -7/Data Miner | Discovered new exit (range 6) 8415 | -7/Data Miner | Met Data Miner 8540 | -7/Data Miner | Learned location of Section 7 (-2) 8540 | -7/Data Miner | Acquired the access code to Warlord's prototype stash 8567 | -7/Data Miner | Received God Mode back door access code from Data Miner 8609 | -7/Data Miner | Data Conduit disabled 8690 | -7/Data Miner | Entered Proximity Caves 8820 | -6/Proximity Caves | Received a Behemoth hack from an annoying Tinkerer 9145 | -6/Proximity Caves | Learned Factory emergency access door positions 9247 | -6/Proximity Caves | Lost 9 parts (1p3n4u1w) 9482 | -6/Proximity Caves | Attracted the attention of an 0b10 checkpoint 9870 | -6/Proximity Caves | Discovered new exit (range 12) 9917 | -6/Proximity Caves | Entered Factory 9917 | -6/Factory | Evolved 2 slots: Utility x1, Weapon x1 9918 | -6/Factory | Identified exit to Factory 9920 | -6/Factory | Loaded intel: 136 trap records 9922 | -6/Factory | Loaded intel: 20 terminal locations 10048 | -6/Factory | Repaired Arm. Treads 10087 | -6/Factory | Repaired Arm. Treads 10132 | -6/Factory | Repaired Hrd. Heavy Armor Plating 10588 | -6/Factory | Build established: Scavenger-Mutant 10719 | -6/Factory | Cargo convoy interrupted 10786 | -6/Factory | Identified exit to Garrison 11391 | -6/Factory | Spotted B-75 Beast 11438 | -6/Factory | Fabricated Huge Storage Unit (x1) 11680 | -6/Factory | Fabricated Lgt. Regenerative Plating (x1) 11713 | -6/Factory | Manually triggered Chute Trap 11713 | -6/Factory | Sucked down chute 11713 | -6/Factory | Entered Waste 11728 | -6/Waste | EMP discharged 11755 | -6/Waste | Spotted C-40 Crusher 11755 | -6/Waste | Spotted C-40 Crusher 11755 | -6/Waste | Spotted C-40 Crusher 11764 | -6/Waste | Spotted C-40 Crusher 11814 | -6/Waste | Spotted C-40 Crusher 11818 | -6/Waste | Spotted C-40 Crusher 11828 | -6/Waste | EMP discharged 11828 | -6/Waste | System corruption reached 10% 11876 | -6/Waste | Discovered new exit (range 11) 11922 | -6/Waste | Destroyed C-40 Crusher 11928 | -6/Waste | EMP discharged 12010 | -6/Waste | Destroyed C-40 Crusher 12028 | -6/Waste | EMP discharged 12047 | -6/Waste | Entered Factory 12324 | -6/Factory | Identified exit to Garrison 12326 | -6/Factory | Entered Garrison 12429 | -6/Garrison | Triggered checkpoint 12550 | -6/Garrison | Triggered checkpoint 12615 | -6/Garrison | Garrison Relay disabled 12670 | -6/Garrison | Triggered checkpoint 12672 | -6/Garrison | Triggered checkpoint 12735 | -6/Garrison | Destroyed 9 combat bots 12824 | -6/Garrison | Discovered exit to Factory (range 12) 12847 | -6/Garrison | Expanded RIF knowledge: Command Fork 12882 | -6/Garrison | Entered Factory 12882 | -5/Factory | Evolved 2 slots: Power x1, Propulsion x1 13315 | -5/Factory | Discovered new exit (range 3) 13422 | -5/Factory | Identified exit to Upper Caves 13422 | -5/Factory | Identified exit to Extension 13550 | -5/Factory | Cargo convoy interrupted 13808 | -5/Factory | Build established: Scavenger-Tank 13948 | -5/Factory | System corruption reached 10% 14010 | -5/Factory | Lost 7 parts (2n4u1w) 14169 | -5/Factory | Build established: Scavenger-Mutant 14549 | -5/Factory | Repaired Weapon Cycler 14604 | -5/Factory | Spotted B-75 Beast 14789 | -5/Factory | Build established: Scavenger-Gunner 14911 | -5/Factory | Fabricated Hvy. Treads? 14982 | -5/Factory | First assault squad dispatched 15195 | -5/Factory | Build established: Scavenger-Tank 15232 | -5/Factory | Entered Upper Caves 15798 | -5/Upper Caves | Attracted the attention of an 0b10 checkpoint 15937 | -5/Upper Caves | Discovered new exit (range 14) 15975 | -5/Upper Caves | Entered another Upper Caves area 16152 | -5/Upper Caves | Identified exit to Zhirov 16179 | -5/Upper Caves | Learned location of 1 exit from Factory 16179 | -5/Upper Caves | Learned 8 Research zone layouts 16179 | -5/Upper Caves | Learned Extension security intel 16217 | -5/Upper Caves | Build established: Scavenger-Mutant 16307 | -5/Upper Caves | Entered Zhirov 16309 | -5/Zhirov | Discovered new exit (range 3) 16375 | -5/Zhirov | Learned location of Quarantine (-3) 16375 | -5/Zhirov | Learned location of Testing (-2) 16375 | -5/Zhirov | Learned location of Command (-1) 16407 | -5/Zhirov | Found Alien Artifact 16407 | -5/Zhirov | Identified Integrated Dissipator 16407 | -5/Zhirov | Installed Integrated Dissipator, increased core heat dissipation (+20) 16430 | -5/Zhirov | Found Alien Artifact 16646 | -5/Zhirov | Entered Proximity Caves 16747 | -4/Proximity Caves | Spotted B-86 Titan 16750 | -4/Proximity Caves | Befriended a Behemoth using the annoying Tinkerer's hack 17259 | -4/Proximity Caves | Build established: Scavenger-Tank 17419 | -4/Proximity Caves | Lost 3 parts (1n1u1w) 17486 | -4/Proximity Caves | Discovered new exit (range 7) 17505 | -4/Proximity Caves | Entered Factory 17505 | -4/Factory | Evolved 2 slots: Utility x2 17506 | -4/Factory | Identified exit to Armory 17507 | -4/Factory | Identified exit to Research 17904 | -4/Factory | Build established: Mutant 18535 | -4/Factory | Lost 3 parts (3u) 18685 | -4/Factory | Identified Transdimensional Reconstructor 18693 | -4/Factory | Discovered exit to Research (range 4) 19056 | -4/Factory | Repaired Adv. Cooling System 19095 | -4/Factory | Repaired Hrd. Medium Armor Plating 19236 | -4/Factory | Cargo convoy interrupted 19262 | -4/Factory | System corruption reached 10% 19280 | -4/Factory | First assault squad dispatched 19320 | -4/Factory | Lost 6 parts (5u1w) 19332 | -4/Factory | Destroyed 14 combat bots 19450 | -4/Factory | Lost 6 parts (2n2u2w) 19548 | -4/Factory | Lost 5 parts (2n1u2w) 19788 | -4/Factory | System corruption reached 30% 19791 | -4/Factory | Entered Research 19791 | -3/Research | Evolved 2 slots: Propulsion x1, Weapon x1 20041 | -3/Research | First assault squad dispatched 20198 | -3/Research | Destroyed 9 combat bots 20466 | -3/Research | Found Unknown Device 20466 | -3/Research | Identified Quantum Capacitor 20573 | -3/Research | Identified exit to Quarantine 20671 | -3/Research | Destroyed 9 combat bots 20752 | -3/Research | System corruption reached 10% 20775 | -3/Research | Self-destructed Last Messages --------------- 20765_ K-01 Serf collects debris. 20766_ R-10 Processor collects Wheel. 20767_ K-01 Serf collects debris. 20767_ U-05 Engineer lays Concrete. 20767_ K-01 Serf collects debris. 20768_ U-05 Engineer lays Concrete. 20769_ K-01 Serf collects debris. 20769_ U-05 Engineer lays Concrete. 20769_ Destroyed Lgt. Quantum Reactor. 20769_ R-10 Processor collects Com. Wheel. 20770_ U-05 Engineer lays Concrete. 20770_ K-01 Serf collects debris. 20770_ U-05 Engineer lays Concrete. 20771_ Arm. Heavy Treads destroyed. 20771_ Hvy. Neutron Cannon destroyed. 20772_ R-10 Processor collects Com. Wheel. 20772_ U-05 Engineer lays Concrete. 20774_ Hvy. Neutron Cannon destroyed. 20774_ Adv. Cooling System destroyed. 20774_ Hvy. Neutron Cannon destroyed. Map ----- +----------------------------------------------------+ | ????????????????#T """ #??????????????????? | | #????????????????#"" """ #??????????????????? | | ?????????????????#"" """ #??????????????????? | | ?????????????????#"" """ #??????????????????? | | ?????????????????# #??????????????????? | | ?????????????????# #??????????????????? | | #???????????############+################????????? | | ???????????# + # #????????? | | ???????????# # # **! #????????? | | ???????????# # # ! #????????? | | ???????????# + + !! #????????? | | #???????????#""" # # #????????? | | ????????????#""" # # #????????? | | ????????????#""" # ###############????????? | | ????????????# # #######????????????????? | | ????????????# # # #????????????????? | | ????????????######### u # #????????????????? | | ????????????########## ##########???????? | | ????????????# # #% # #??????## | | ????????????# # # #??????# | | ????????????? """ # !# """" ######## | | ?????????????? """ #!! # # """" ## ## | | ?????????????? """ #% ! # + """" + ## | | ????????????# """ =#! # # """" ## ## | | ????????????# """ = #u!%[+* # """" # # | | ????????????# %[#!%%@# # ## # | | ????????????# %!!#!!k%#% * # # # | | ????????????######+###[[g%#############+### ### | | ????????????? %p%!g R * % | | ????????? !k*k ! | | ???????? ! % | | ????????? A % | | ????????? ######;## ; #######/######+########## | | ????????? ????? h## # # #### | | ??????????????? h ?#;# # # # | | ?????????????? ? # """"" # """ ###### | | ?????????????? ?### ""Y"" # """ #????? | | ??????????????? ???# # "S #????? | | ???????????????? ???# # """ #????? | | ??????????????????? ???# # "" #????? | | ??????????????????? ????# # #????? | | ????????????????????#???#"########## #????? | | ???????????????????????# ###???????##########????? | | ???????????????????????##????????????##??????????? | | ?????????????????????????????????????????????????? | | ?????????????????????????????????????????????????? | | ?????????????????????????????????????????????????? | | ?????????????????????????????????????????????????? | | ?????????????????????????????????????????????????? | | ?????????????????????????????????????????????????? | +----------------------------------------------------+ Best States ------------- Heat Dissipation 147 Coolant Potential 65 Energy Generation 41 Energy Capacity 550 Matter Stores 300 Matter Capacity 600 Sight Range 20 Robot Scan Range 20 Terrain Scan Range 24 Terrain Scan Density 10 Jamming Range 16 Corruption Prevention 12 Armor Coverage 1350 Core Shielding 30 Propulsion Shielding 33 Utility Shielding 66 Weapon Cycling 20 Phase Shifting 10 Evasion (%) 50 Targeting Accuracy 6 Target Analysis 6 Recoil Reduction 6 Kinecelleration 30 Offensive Hacking 10 Defensive Hacking 14 Relay Coupler Types 30 Relay Coupler Value 1 Item Schematics ----------------- Huge Storage Unit | -10/Materials | Hacked Hcp. Storage Unit | -8/Materials | Hacked Arm. Treads | -7/Factory | Scanalyzed Combat Drone Bay | -7/Data Miner | Free Lgt. Regenerative Plating | -7/Data Miner | Free Exp. Flexi-carbon Leg | -7/Data Miner | Free Exp. Terrain Scanner | -7/Data Miner | Free Exp. Cesium-ion Thruster | -7/Data Miner | Free Cloaking Device | -7/Data Miner | Free Plasma Sword | -7/Data Miner | Free Gravmag Array | -6/Factory | Hacked Hvy. Treads | -5/Factory | Scanalyzed Assault Drone Bay | -5/Zhirov | Free Exp. Heat Sink | -5/Zhirov | Free Exp. Optical Array | -5/Zhirov | Free Imp. Arc Thrower | -5/Zhirov | Free Robot Schematics ------------------ None Fabricated ------------ Huge Storage Unit | x1 | -6/Factory Lgt. Regenerative Plating | x1 | -6/Factory Hvy. Treads | x2 | -5/Factory Alien Tech Used ----------------- Integrated Dissipator Achievements -------------- None Challenges ------------ None Game ------ Seed AssaultMappingKinecellerator Manual? 0 Play Time 02:28:51 Cumulative 1055.5 hours Start 2021.06.17 @ 14:33:57 End 2021.06.17 @ 17:30:53 Sessions 1 Manual Loads 0 Difficulty Rogue Special Mode None Game No. 809 Rogue 769 Adventurer 40 Explorer 0 Win Type - Total 119 Types 60/4/33/2/1/4/13/1/1 Lore% 92 Gallery% 97 Achievement% 80 Wizard Run 0 Options --------- ASCII 0 Keyboard 0 Movement Numpad Keybinds 0 Fullscreen 0 Font 20/Terminus Map View 76x50 Tactical HUD 1 Map Filters NONE Filters NONE Steam 1 RUN: a0eb40d8-57d6-4ff2-b25d-1ad066340225